Body,Body Name,Date,Transaction Number,Amount,Supplier Name,Supplier ID,Expense Area,Expense Type,Expense Code,Extended Description,Service Code,Service Label,Service Division Label,Service Division Code
http://statistics.data.gov.uk/id/local-authority/16UF,Eden District Council,07/11/2014,139165,550,BLACK HORSES LTD,BLA018,Communities Manager,Promotional activity,2084,CARRIAGE/HORSES PENRITH HALLOWEEN,TWNCEN,Town Centres,02636,Signature Events
http://statistics.data.gov.uk/id/local-authority/16UF,Eden District Council,07/11/2014,139193,660,THE CUMBRIA CLOCK COMPANY,CUM026,Engineering Manager,Building Maintenance,1000,SERVICING PENRITH CLOCKS,PROAME,Provision of Ameneties,02255,M'ce of Public Clocks
http://statistics.data.gov.uk/id/local-authority/16UF,Eden District Council,07/11/2014,138957,650,CHRIS WAKEFIELD TREE SVCS,CHR001,Engineering Manager,Ground Maintenance SOR & Dayworks,1088,FRENCHFIELD GARDENS - 3 TREES,PARKOS,Parks and Open Spaces,02129,Open spaces
http://statistics.data.gov.uk/id/local-authority/16UF,Eden District Council,07/11/2014,138682,2477.25,IMPACT HOUSING ASSOCIATION,IMP001,Environmental Services,Grants and contributions,2079,AT HOME IN EDEN PROJECT,RENGRT,Renovation Grant Scheme,02293,Staying put project
http://statistics.data.gov.uk/id/local-authority/16UF,Eden District Council,07/11/2014,138822,500,ALSTON MOOR PARTNERSHIP,ALS004,Communities Manager,Grants and contributions,2079,TOURISM GRANT ELEC BIKE SCHEME,TOUPRO,Tourism Promotion,02056,Eden Tourism
http://statistics.data.gov.uk/id/local-authority/16UF,Eden District Council,07/11/2014,138829,6656.39,EDEN HOUSING ASSOCIATION LTD,EDE001,Environmental Services,Hire of premises,1029,TEMP ACCOMMODATION 7/7/14 - 5/10/14,HOMLES,Homelessness,02296,Homelessness Grant Fund
http://statistics.data.gov.uk/id/local-authority/16UF,Eden District Council,07/11/2014,138830,24259.9,EDEN HOUSING ASSOCIATION LTD,EDE001,Environmental Services,Other charges for services,2047,HOMELESSNESS ADVICE 7/7/14 - 5/10/14,HOMLES,Homelessness,02296,Homelessness Grant Fund
http://statistics.data.gov.uk/id/local-authority/16UF,Eden District Council,07/11/2014,138971,1232.5,INN ON THE LAKE,INN002,Communities Manager,Hospitality,2087,87 DELEGATES ROOM BOOKING,TOUPRO,Tourism Promotion,02056,Eden Tourism
http://statistics.data.gov.uk/id/local-authority/16UF,Eden District Council,07/11/2014,139033,536.36,NORTH COUNTRY LEISURE,NCL001,Communities Manager,Contract leisure management,3005,AD HOC BOOKINGS AUG / SEPT 2014,LEICEN,Eden Leisure Centre & Appleby Swimming P,02101,Frenchfield - Building
http://statistics.data.gov.uk/id/local-authority/16UF,Eden District Council,07/11/2014,139070,625,RAVENSTONEDALE PARISH COUNCIL,RAV001,Communities Manager,Balance Sheet entry BS,6003,EDEN COMMUNITY FUND,COMMFND,Community Fund,10400,Community Fund
http://statistics.data.gov.uk/id/local-authority/16UF,Eden District Council,07/11/2014,139076,5558,ENTERPRISE PROSPECTS LTD,ENT004,Chief Executive's,Agency Staff,0003,R HOOPER OCTOBER 2014,CHIEXE,Chief Executive,00050,Chief Executive
http://statistics.data.gov.uk/id/local-authority/16UF,Eden District Council,07/11/2014,139077,3000,CUMBRIA ASSOCIATION OF LOCAL COUNCILS,CUM039,Director of Corporate and Legal Services,Grants and contributions,2079,ANNUAL GRANT 2014/15,COMDEV,Community Development & Engagement,01124,CALC 2H
http://statistics.data.gov.uk/id/local-authority/16UF,Eden District Council,07/11/2014,139089,833,CUMBRIA RURAL HOUSING TRUST,CUM020,Environmental Services,CLG GRANT EXPENDITURE,2157,ENABLING SLA 2013/14 SEPTEMBER 2014,HOMLES,Homelessness,02296,Homelessness Grant Fund
http://statistics.data.gov.uk/id/local-authority/16UF,Eden District Council,07/11/2014,139093,861.9,UNITED UTILITIES WATER PLC,UNI024,Environmental Services,Professional fees,2045,WT/FS ANALYSIS SEPT 2014,OENHEA,Other Environmental Health,03040,Sampling Swimming Pools
http://statistics.data.gov.uk/id/local-authority/16UF,Eden District Council,07/11/2014,139153,2443.71,CUMBRIA WASTE RECYCLING LTD,CUM022,Engineering Manager,material price fluctuations,3604,F_02_14/15,RECYCL,Recycling,03047,Recycling
http://statistics.data.gov.uk/id/local-authority/16UF,Eden District Council,07/11/2014,139160,56125,SOUTH LAKELAND DISTRICT COUNCIL,SOU006,Information Technology Manager,Shared IT Services,2500,IT SHARED SERVICES,INFTEC,Information Technology,00102,Information Technology
http://statistics.data.gov.uk/id/local-authority/16UF,Eden District Council,07/11/2014,139163,602.9,AMEY PLC,TFE001,Engineering Manager,Street Cleaning Contract,3100,SC20,STRCLE,Street Cleaning,02248,Fly tipping on verge
http://statistics.data.gov.uk/id/local-authority/16UF,Eden District Council,07/11/2014,139164,2547.54,AMEY PLC,TFE001,Engineering Manager,Refuse Contract Dayworks,3012,RC25,REFCOL,Refuse Collection,03049,Refuse Collection Domestic
http://statistics.data.gov.uk/id/local-authority/16UF,Eden District Council,07/11/2014,139168,1672.48,PENRITH PLAYERS THEATRE LTD,PEN002,Communities Manager,Commission,7504,TICKET SALES LADIES DAY,TAPTIC,Penrith TIC Trading Account,09164,Penrith TIC - Penrith Players
http://statistics.data.gov.uk/id/local-authority/16UF,Eden District Council,07/11/2014,139170,842.3,LIONS CLUB OF PENRITH,LIO003,Communities Manager,Community engagement development,2042,HIRE OF BAND/FOOD FOR BAND,COMDEV,Community Development & Engagement,01056,Consultation
http://statistics.data.gov.uk/id/local-authority/16UF,Eden District Council,07/11/2014,139191,59933.17,ASHCROFT PLANT CUMBRIA LTD,ASH013,Engineering Manager,Building works,5502,CERTIFICATE NO 1,LANDMA,Land Management,06144,Land Assembley - Town Hall Site
http://statistics.data.gov.uk/id/local-authority/16UF,Eden District Council,07/11/2014,139197,3559.08,ATKINSON BUILDING CONTRACTORS,ATK009,Environmental Services,Capital grants,5505,140004/,MEREGR,1996 Mandatory Renovation Grants,06035,Disabled Facility Grants
http://statistics.data.gov.uk/id/local-authority/16UF,Eden District Council,07/11/2014,139198,3317,ATKINSON BUILDING CONTRACTORS,ATK009,Environmental Services,Capital grants,5505,140003/,MEREGR,1996 Mandatory Renovation Grants,06035,Disabled Facility Grants
http://statistics.data.gov.uk/id/local-authority/16UF,Eden District Council,07/11/2014,139199,1340,TOP NOTCH CONTRACTORS LTD,TOP003,Environmental Services,Decent Homes Grants,5524,140007/,DIREGR,1996 Discretionary Renovation Grants,06034,1996 Discretionary Renovation Grants
http://statistics.data.gov.uk/id/local-authority/16UF,Eden District Council,07/11/2014,139271,642.31,GREYSTOKE VILLAGE HALL,GRE016,Engineering Manager,VRC Payments,2103,April 14 to Sep 14,RECYCL,Recycling,03047,Recycling
http://statistics.data.gov.uk/id/local-authority/16UF,Eden District Council,07/11/2014,139292,507.97,SHAP PARISH COUNCIL,SHA008,Engineering Manager,VRC Payments,2103,April 14 to Sep 14,RECYCL,Recycling,03047,Recycling
http://statistics.data.gov.uk/id/local-authority/16UF,Eden District Council,14/11/2014,139301,965,KAREN MACDOUGALL MA DIP ARCH,MCD001,Communities Manager,Other charges for services,2047,WW1/VIKING WORKSHOPS,MUSEUM,Museum,02089,Education programme
http://statistics.data.gov.uk/id/local-authority/16UF,Eden District Council,14/11/2014,139307,3375,LEEDS METROPOLITAN UNIVERSITY,LEE002,Human Resources Manager,Training Expenses,0060, 33383182 BSCH ENV HEALTH P,STADEV,Staff Development,00225,Staff Training Communities
http://statistics.data.gov.uk/id/local-authority/16UF,Eden District Council,14/11/2014,139313,6000,ASTUN TECHNOLOGY LIMITED,AST004,Information Technology Manager,Web Services,2065,ISHARE OPEN ENTERPRISE AGREEMENT 14/15,INFTEC,Information Technology,00102,Information Technology
http://statistics.data.gov.uk/id/local-authority/16UF,Eden District Council,14/11/2014,139324,620,PPL TRAINING LTD,PPL001,Human Resources Manager,Safety training  205800 only,2074,LEGIONELLA MANGMENT,STADEV,Staff Development,00222,Central Training Budget
http://statistics.data.gov.uk/id/local-authority/16UF,Eden District Council,14/11/2014,139349,576,CUMBERLAND AND WESTMORLAND HERALD,CUM001,Engineering Manager,Advertising,2086,PENRITH WINTER DROVING,PROAME,Provision of Ameneties,02252,Provision of Amenities
http://statistics.data.gov.uk/id/local-authority/16UF,Eden District Council,14/11/2014,139180,650,CHRIS WAKEFIELD TREE SVCS,CHR001,Engineering Manager,Ground Maintenance SOR & Dayworks,1088,TREE WORK VARIOUS SITES,PARKOS,Parks and Open Spaces,02129,Open spaces
http://statistics.data.gov.uk/id/local-authority/16UF,Eden District Council,14/11/2014,139205,1250,METCALFE PLANT & TOOL HIRE LTD,MET002,Engineering Manager,Abnormal maintenance,1007,OPEN DITCH CLEARANCE GREYSTOKE,LANDMA,Land Management,02245,Land Drainage
http://statistics.data.gov.uk/id/local-authority/16UF,Eden District Council,14/11/2014,138559,829.39,VODAFONE LTD,VOD003,Information Technology Manager,Telephone,2055,RENTALS/CALL CHARGES,CENTRA,Central Expenses,00104,Telephones
http://statistics.data.gov.uk/id/local-authority/16UF,Eden District Council,14/11/2014,138790,1575,VODAFONE LTD,VOD003,Information Technology Manager,Telephone,2055,SERVICES,CENTRA,Central Expenses,00104,Telephones
http://statistics.data.gov.uk/id/local-authority/16UF,Eden District Council,14/11/2014,138966,743.86,PRINT IMAGE NETWORK LTD,PRI011,Legal Services Manager,Miscellaneous,2092,1ST REMINDERS/EXTRACTIONS,REGELE,Register of Electors,01001,Register of Electors
http://statistics.data.gov.uk/id/local-authority/16UF,Eden District Council,14/11/2014,139073,725,VENN GROUP LIMITED,VEN003,Revenue/Benefits Manager,Supplies general,2015,TIMESHEET A414475,CTXBEN,Council Tax Benefits,01164,Local Council Tax Scheme
http://statistics.data.gov.uk/id/local-authority/16UF,Eden District Council,14/11/2014,139083,857.36,VODAFONE LTD,VOD003,Information Technology Manager,Telephone,2055,RENTAL/CALL CHARGES,CENTRA,Central Expenses,00104,Telephones
http://statistics.data.gov.uk/id/local-authority/16UF,Eden District Council,14/11/2014,139154,1304.79,ROYAL MAIL NW,ROY001,Revenue/Benefits Manager,Postages,2054,POSTAGE 01 - 21/10/14,REVBEN,Revenue & Benefits,00106,Revenues
http://statistics.data.gov.uk/id/local-authority/16UF,Eden District Council,14/11/2014,139179,543,PRINT IMAGE NETWORK LTD,PRI011,Legal Services Manager,Miscellaneous,2092,1ST REMINDER RUN,REGELE,Register of Electors,01001,Register of Electors
http://statistics.data.gov.uk/id/local-authority/16UF,Eden District Council,14/11/2014,139190,875,VENN GROUP LIMITED,VEN003,Revenue/Benefits Manager,Supplies general,2015,TIMESHEET A416385,CTXBEN,Council Tax Benefits,01164,Local Council Tax Scheme
http://statistics.data.gov.uk/id/local-authority/16UF,Eden District Council,14/11/2014,139318,2180.4,WALTON GOODLAND LTD,WAL008,Engineering Manager,Land Management Contract,2126,RATE FOR SURVEYOR SEPT 2014,LANDMA,Land Management,01007,Land Management
http://statistics.data.gov.uk/id/local-authority/16UF,Eden District Council,14/11/2014,139331,1327.5,M TAYLOR ASSOCIATES LTD,TAY017,Human Resources Manager,Professional fees,2045,HR SUPPORT OCTOBER 2014,HUMRES,Human Resources,00207,Human Resources
http://statistics.data.gov.uk/id/local-authority/16UF,Eden District Council,14/11/2014,139333,750,TRAFFORD METROPOLITAN BOROUGH COUNCIL,TRA002,Financial Services Manager,Professional fees,2045,SPENDPRO APRIL - MARCH 2015,CORPOR,Corporate Costs,01131,Collaborative Procurement
http://statistics.data.gov.uk/id/local-authority/16UF,Eden District Council,14/11/2014,139339,578.51,UNITED UTILITIES WATER LTD,UNI008,Engineering Manager,Water charges � metered,1032,PCS MARKET SQ KIRKBY STEPHEN,PUBCON,Public Conveniences,02283,Kirkby Stephen Stoneshot Public Conv
http://statistics.data.gov.uk/id/local-authority/16UF,Eden District Council,14/11/2014,138795,5000,EDEN HOUSING ASSOCIATION LTD,EDE001,Environmental Services,CLG GRANT EXPENDITURE,2157,CONTRIBUTION TO HANDY PERSON SCHEME,HOMLES,Homelessness,02296,Homelessness Grant Fund
http://statistics.data.gov.uk/id/local-authority/16UF,Eden District Council,14/11/2014,138813,607.2,EDEN HOUSING ASSOCIATION LTD,EDE001,Environmental Services,CLG GRANT EXPENDITURE,2157,EXPERIAN CITIZENVIEW LICENCE,HOMLES,Homelessness,02296,Homelessness Grant Fund
http://statistics.data.gov.uk/id/local-authority/16UF,Eden District Council,14/11/2014,139031,588,DENISE CALVERT LTD,CAL019,Revenue/Benefits Manager,Supplies general,2015,BENEFIT WORK 15 & 16/10/14,CTXBEN,Council Tax Benefits,01164,Local Council Tax Scheme
http://statistics.data.gov.uk/id/local-authority/16UF,Eden District Council,14/11/2014,139167,1930,IT PROFESSIONAL SERVICES LTD,ITP001,Financial Services Manager,Balance brought forward BS,6000,RSA SECUREID AUTHENTICATOR SID700 (36 MO,INFTEC,Council Tax Benefits,10263,Payments in Adv - Gf
http://statistics.data.gov.uk/id/local-authority/16UF,Eden District Council,14/11/2014,139192,2486.18,BROUGH MEMORIAL HALL,BRO012,Communities Manager,Balance Sheet entry BS,6003,EDEN COMM. FUND,COMMFND,Community Fund,10400,Community Fund
http://statistics.data.gov.uk/id/local-authority/16UF,Eden District Council,14/11/2014,139200,780,EDS (ELECTRICAL-DATA-SECURITY) LTD,EDS001,Engineering Manager,Building Maintenance,1000,maint. cover turnstiles pooley bridge pc,PUBCON,Public Conveniences,02273,Pooley Bridge Public Convenience
http://statistics.data.gov.uk/id/local-authority/16UF,Eden District Council,14/11/2014,139300,6000,CUMBRIA COUNTY COUNCIL,CCC002,Director of Finance,Professional fees,2045,AUDIT - 25% OF PLANNED 120 DAYS,DIRFIN,Director of Finance,00100,Director of Finance / Secretary
http://statistics.data.gov.uk/id/local-authority/16UF,Eden District Council,14/11/2014,139310,7245.42,CUMBRIA WASTE RECYCLING LTD,CUM022,Engineering Manager,Recycling  - Bring Sites,3601,BS-27,RECYCL,Recycling,03047,Recycling
http://statistics.data.gov.uk/id/local-authority/16UF,Eden District Council,14/11/2014,139311,3993.97,CUMBRIA WASTE RECYCLING LTD,CUM022,Engineering Manager,material price fluctuations,3604,BS-F-01-14/15,RECYCL,Recycling,03047,Recycling
http://statistics.data.gov.uk/id/local-authority/16UF,Eden District Council,14/11/2014,139312,3489,CUMBRIA WASTE RECYCLING LTD,CUM022,Engineering Manager,material price fluctuations,3604,BS-F-02-14/15,RECYCL,Recycling,03047,Recycling
http://statistics.data.gov.uk/id/local-authority/16UF,Eden District Council,14/11/2014,139334,916.3,GATESTRAVEL,GAT004,Environmental Services,Public transport,1503,RAIL/ACCOMMODATION CHARGES,SUSPAC,Suspense Account,09420,District Councils Network
http://statistics.data.gov.uk/id/local-authority/16UF,Eden District Council,14/11/2014,139340,3507.81,E.ON UK PLC,EON001,Engineering Manager,Electricity,1022,STREET LIGHTING,FOOLIG,Footway Lighting,02258,Footway lighting
http://statistics.data.gov.uk/id/local-authority/16UF,Eden District Council,21/11/2014,139450,2291.1,IT PROFESSIONAL SERVICES LTD,ITP001,Information Technology Manager,Software � maintenance,2067,RSA AUTHENTICATION MANAGER SUPPORT,INFTEC,Information Technology,00102,Information Technology
http://statistics.data.gov.uk/id/local-authority/16UF,Eden District Council,21/11/2014,139302,800,CIVICA PUBLIC PROTECTION LTD,CIV003,Environmental Services,Software � maintenance,2067,FSSNET INSTALLATION,FOODSA,Food Safety,03032,Food Safety
http://statistics.data.gov.uk/id/local-authority/16UF,Eden District Council,21/11/2014,139304,1320,IAN CANNON LTD,CAN004,Engineering Manager,Bank-Refurbishment,2009,PRESSURE WASH VARIOUS BRING SITES,RECYCL,Recycling,03047,Recycling
http://statistics.data.gov.uk/id/local-authority/16UF,Eden District Council,21/11/2014,139317,2085.56,HEATONS OFFICE SOLUTIONS LTD,LAK004,Engineering Manager,Equipment � purchase,2000,STATIONERY/PAPER/OFFICE FURNITURE,CENTRA,Central Expenses,00212,Health & Safety
http://statistics.data.gov.uk/id/local-authority/16UF,Eden District Council,21/11/2014,139353,14952,APERTURE,APE003,Communities Manager,Building works,5502,SUPPLY & FIT WEATHERING SYSTEM LEISURE C,LEICEN,Penrith Leisure Centre,06056,Penrith Leisure Centre Repairs
http://statistics.data.gov.uk/id/local-authority/16UF,Eden District Council,21/11/2014,139451,1400,CUMBRIA COUNTY COUNCIL,CCC002,Engineering Manager,Professional fees,2045,"SEARCHES JULY, AUG, SEPT 2014",LANDCH,Land Charges,01002,Land Charges
http://statistics.data.gov.uk/id/local-authority/16UF,Eden District Council,21/11/2014,139452,515,OVALTECH LTD,OVA001,Information Technology Manager,Web Services,2065,ANNUAL SUB 7/11/14 - 6/11/15,INFTEC,Information Technology,00102,Information Technology
http://statistics.data.gov.uk/id/local-authority/16UF,Eden District Council,21/11/2014,139454,600,ROBBIE DEE,DEE001,Legal Services Manager,Professional fees,2045,HOSTING BEST BAR NONE AWARDS 2014,CRDRPA,Crime & Disorder Reduction Partnership,09256,Best Bar None Scheme
http://statistics.data.gov.uk/id/local-authority/16UF,Eden District Council,21/11/2014,139456,14850.52,AMEY PLC,TFE001,Engineering Manager,Window cleaning,1040,2014_BC_10,PUBCON,Public Conveniences,02630,Disabled Toilet Moot Hall Appleby
http://statistics.data.gov.uk/id/local-authority/16UF,Eden District Council,21/11/2014,139457,2936.46,AMEY PLC,TFE001,Engineering Manager,FL  Contract,3300,FL-8/2014,FOOLIG,Footway Lighting,02258,Footway lighting
http://statistics.data.gov.uk/id/local-authority/16UF,Eden District Council,21/11/2014,139478,3471.69,AMEY PLC,TFE001,Engineering Manager,Building Maintenance,1000,GM58,CEMETE,Cemeteries,02236,Penrith Cemetery Chapel
http://statistics.data.gov.uk/id/local-authority/16UF,Eden District Council,21/11/2014,139479,2400,UNIVERSITY OF CENTRAL LANCASHIRE,UNI017,Planning Services Manager (BC),Training Expenses,0060,TUITION  BSC BUILDING SURVEYING D RUSSEL,BUILRE,Building Regulations,03017,Building Regulations
http://statistics.data.gov.uk/id/local-authority/16UF,Eden District Council,21/11/2014,139482,2000,NEOPOST LIMITED,NEO001,Corporate Services Manager,Postages,2054,FRANKING MACHINE REFILLS,CENTRA,Central Expenses,00205,Postages Town Hall
http://statistics.data.gov.uk/id/local-authority/16UF,Eden District Council,21/11/2014,139483,1887.75,POSITIVE PLANNING SOLUTIONS LTD,POS007,Planning Services,Agency Staff,0003,DEVELOPMENT MANAGEMENT SERVICES,DEVCOE,Development Control & Enforcement,03010,Development Control & Enforcement
http://statistics.data.gov.uk/id/local-authority/16UF,Eden District Council,21/11/2014,139484,770,JAY ASHALL ASSOCIATES,JAY001,Planning Services,Charges for services,8000,FULL REFUND APPLICATION NOT SUBMITTED PP03355556,DEVCOE,Development Control & Enforcement,03010,Development Control & Enforcement
http://statistics.data.gov.uk/id/local-authority/16UF,Eden District Council,21/11/2014,139487,16291.96,AMEY PLC,TFE001,Engineering Manager,GM INSPECTIONS & MAINTENANCE,1089,M-GM32,CLCHYD,Closed Church Yards,02246,War Memorials
http://statistics.data.gov.uk/id/local-authority/16UF,Eden District Council,21/11/2014,139489,14851.52,AMEY PLC,TFE001,Engineering Manager,Window cleaning,1040,2004_BC_11A,PUBCON,Public Conveniences,02630,Disabled Toilet Moot Hall Appleby
http://statistics.data.gov.uk/id/local-authority/16UF,Eden District Council,21/11/2014,139183,1796,CAPITA PROPERTY & INFRASTRUCTURE LTD,CAP002,Planning Services,Professional fees,2045,ARBORICULTURAL SERVICE OCTOBER 2014,CONSER,Environmental Enhancement & Conservation,03012,Aboricutural Advice
http://statistics.data.gov.uk/id/local-authority/16UF,Eden District Council,21/11/2014,139319,696.7,ASCOT BUSINESS SOLUTIONS LTD,ASC001,Information Technology Manager,IT Contracts & Maintenance,2062,CANNON DR-9080C SCANNER MAINT AGREEMENT 2015,INFTEC,Information Technology,00102,Information Technology
http://statistics.data.gov.uk/id/local-authority/16UF,Eden District Council,21/11/2014,139337,3750,MONTAGU EVANS LLP,MON006,Engineering Manager,Supplies general,2015,PENRITH NEW SQUARES,CORPOR,Corporate Costs,09310,Penrith New Squares Dev
http://statistics.data.gov.uk/id/local-authority/16UF,Eden District Council,21/11/2014,139338,3075.4,WALTON GOODLAND LTD,WAL008,Engineering Manager,Land Management Contract,2126,RATE FOR SURVEYOR 1-30 SEPT 14,LANDMA,Land Management,01007,Land Management
http://statistics.data.gov.uk/id/local-authority/16UF,Eden District Council,20/11/2014,139670,1076,BUSY BEES CHILDCARE VOUCHERS,BUS004,Planning Services,Child Care Voucher Scheme,0005,CHILDCARE VOUCHERS 20/11/14 DDR,PLASER,Planning Services,00304,Planning Services
http://statistics.data.gov.uk/id/local-authority/16UF,Eden District Council,28/11/2014,139467,580.64,AMEY PLC,TFE001,Engineering Manager,Building works,5502,CHECK & TEST LIGHTS COWPER RD,LANDMA,Land manageent,06002,Gilwilly Extension Eden Business park
http://statistics.data.gov.uk/id/local-authority/16UF,Eden District Council,28/11/2014,139620,3240,BRITTLETON BUILDERS,BRI007,Environmental Services,Capital grants,5505,FINAL PAYMENT ,MEREGR,1996 Mandatory Renovation Grants,06035,Disabled Facility Grants
http://statistics.data.gov.uk/id/local-authority/16UF,Eden District Council,28/11/2014,139621,2900,BRITTLETON BUILDERS,BRI007,Environmental Services,Capital grants,5505,FINAL PAYMENT APPLEBY,MEREGR,1996 Mandatory Renovation Grants,06035,Disabled Facility Grants
http://statistics.data.gov.uk/id/local-authority/16UF,Eden District Council,28/11/2014,139622,2125,TAYLOR & HARDY,TAY004,Planning Services,Professional fees,2045,AWARD OF COSTS APP/H0928/A/14/2219064,DEVCOE,Development Control & Enforcement,03010,Development Control & Enforcement
http://statistics.data.gov.uk/id/local-authority/16UF,Eden District Council,28/11/2014,139625,10000,redacted information,FRA003,Environmental Services,Empty Property Grants,5527,FINAL PAYMENT ARMATHWAITE,DIREGR,1996 Discretionary Renovation Grants,06034,1996 Discretionary Renovation Grants
http://statistics.data.gov.uk/id/local-authority/16UF,Eden District Council,28/11/2014,139638,1255,CUMBRIA WASTE RECYCLING LTD,CUM022,Engineering Manager,Garden Waste Skips,2014,GREEN WASTE VARIOUS SITES,RECYCL,Recycling,03047,Recycling
http://statistics.data.gov.uk/id/local-authority/16UF,Eden District Council,28/11/2014,139646,882.31,RENTOKIL INITIAL PEST CONTROL,REN009,Environmental Services,Pest Control,3400,PESTS MISCELLANEOUS,PESCON,Pest Control,03043,Pest Control
http://statistics.data.gov.uk/id/local-authority/16UF,Eden District Council,28/11/2014,139648,19435.61,CUMBRIA WASTE RECYCLING LTD,CUM022,Engineering Manager,Recycling - Bag & Box,3600,GB-17-14/15,RECYCL,Recycling,03047,Recycling
http://statistics.data.gov.uk/id/local-authority/16UF,Eden District Council,28/11/2014,139649,22046.2,CUMBRIA WASTE RECYCLING LTD,CUM022,Engineering Manager,Recycling - Garden Waste,3602,GW-07-14/15,RECYCL,Recycling,03047,Recycling
http://statistics.data.gov.uk/id/local-authority/16UF,Eden District Council,28/11/2014,139672,531.91,VODAFONE LTD,VOD003,Information Technology Manager,Telephone,2055,LINE RENTALS/CALLS,CENTRA,Central Expenses,00104,Telephones
http://statistics.data.gov.uk/id/local-authority/16UF,Eden District Council,28/11/2014,139447,588,DENISE CALVERT LTD,CAL019,Revenue/Benefits Manager,Supplies general,2015,BENEFIT WORK 29 & 30/10/14,CTXBEN,Council Tax Benefits,01164,Local Council Tax Scheme
http://statistics.data.gov.uk/id/local-authority/16UF,Eden District Council,28/11/2014,139448,595,DENISE CALVERT LTD,CAL019,Revenue/Benefits Manager,Supplies general,2015,05 & 06/11/14,CTXBEN,Council Tax Benefits,01164,Local Council Tax Scheme
http://statistics.data.gov.uk/id/local-authority/16UF,Eden District Council,28/11/2014,139463,878.12,AMEY PLC,TFE001,Environmental Services,Dog Contract O.O.H retainer,3200,KENNELLING/STRAY DOGS 01.11.14-31.11.14,CODOGS,Community Wardens,03045,Dog Control
http://statistics.data.gov.uk/id/local-authority/16UF,Eden District Council,28/11/2014,139490,696.7,ASCOT BUSINESS SOLUTIONS LTD,ASC001,Information Technology Manager,IT Contracts & Maintenance,2062,CANNON DR-9080C SCANNER MAINT AGREEMENT 2015,INFTEC,Information Technology,00102,Information Technology
http://statistics.data.gov.uk/id/local-authority/16UF,Eden District Council,28/11/2014,139507,619,OH ACQUISITIONS LIMITED,OHA001,Human Resources Manager,Other charges for services,2047,APPOINTMENTS VARIOUS,CENTRA,Central Expenses,00209,Welfare
http://statistics.data.gov.uk/id/local-authority/16UF,Eden District Council,28/11/2014,139588,17322.66,AMEY PLC,TFE001,Environmental Services,Street Cleaning Contract,3100,M-SC32,APFAIR,Appleby Fair,03036,Appleby Fair
http://statistics.data.gov.uk/id/local-authority/16UF,Eden District Council,28/11/2014,139589,66678.21,AMEY PLC,TFE001,Engineering Manager,Contract refuse collection,3003,M-RC32,REFCOL,Refuse Collection,03050,Clinical Expenditure
http://statistics.data.gov.uk/id/local-authority/16UF,Eden District Council,28/11/2014,139591,595,DENISE CALVERT LTD,CAL019,Revenue/Benefits Manager,Supplies general,2015,BENEFIT WORK 12 & 13/11/14,CTXBEN,Council Tax Benefits,01164,Local Council Tax Scheme
http://statistics.data.gov.uk/id/local-authority/16UF,Eden District Council,28/11/2014,139596,700,DAVID BUCHANAN,BUC006,Revenue/Benefits Manager,Supplies general,2015,WALL REPAIRS CASTLETOWN,CTXBEN,Council Tax Benefits,01164,Local Council Tax Scheme
http://statistics.data.gov.uk/id/local-authority/16UF,Eden District Council,28/11/2014,139604,3440,MARCUS GARDINER,GAR015,Environmental Services,Decent Homes Grants,5524, ALSTON,DIREGR,1996 Discretionary Renovation Grants,06034,1996 Discretionary Renovation Grants
http://statistics.data.gov.uk/id/local-authority/16UF,Eden District Council,28/11/2014,139607,1108.99,ROYAL MAIL NW,ROY001,Revenue/Benefits Manager,Postages,2054,POSTAGE 22/10/14 - 11/11/14,REVBEN,Revenue & Benefits,00106,Revenues
http://statistics.data.gov.uk/id/local-authority/16UF,Eden District Council,28/11/2014,139733,840,KAREN MACDOUGALL MA DIP ARCH,MCD001,Communities Manager,Other charges for services,2047,8 SCHOOL WORKSHOPS/TULLIE HOUSE,MUSEUM,Museum,02089,Education programme
http://statistics.data.gov.uk/id/local-authority/16UF,Eden District Council,28/11/2014,139734,675,STUART POOL CONSULTANCY LTD,POO004,Communities Manager,Building Maintenance,1000,CONSULTANCY SERVICES 30.10.14,LEICEN,Eden Leisure Centre & Appleby Swimming P,02101,Frenchfield - Building
http://statistics.data.gov.uk/id/local-authority/16UF,Eden District Council,28/11/2014,139476,2015.97,AMEY PLC,TFE001,Engineering Manager,FL Day Works,3301,LOCATIONS FOR NEW INSTALLATIONS,FOOLIG,Footway Lighting,02258,Footway lighting
http://statistics.data.gov.uk/id/local-authority/16UF,Eden District Council,28/11/2014,139624,9950.61,IAN CANNON LTD,CAN004,Communities Manager,Professional fees,2045,SPORTS FIELD CARLETON,PARKOS,Parks and Open Spaces,02632,Carleton Park Drainage Feasability
http://statistics.data.gov.uk/id/local-authority/16UF,Eden District Council,28/11/2014,139674,1194.3,UNITED UTILITIES WATER PLC,UNI024,Environmental Services,Professional fees,2045,FS/WT ANALYSIS OCTOBER 2014,OENHEA,Other Environmental Health,03040,Sampling Swimming Pools
http://statistics.data.gov.uk/id/local-authority/16UF,Eden District Council,28/11/2014,139715,830.35,AMEY PLC,TFE001,Legal Services Manager,Caretaking/security (contract),1003,BUILDING CLEANING AD HOC,COMMEM,Committee and Member Costs,01078,Servicing Committees
http://statistics.data.gov.uk/id/local-authority/16UF,Eden District Council,28/11/2014,139717,945.43,AMEY PLC,TFE001,Legal Services Manager,Caretaking/security (contract),1003,BULIDING CLEANING AD HOC,COMMEM,Committee and Member Costs,01078,Servicing Committees
http://statistics.data.gov.uk/id/local-authority/16UF,Eden District Council,28/11/2014,139718,870.19,AMEY PLC,TFE001,Legal Services Manager,Caretaking/security (contract),1003,BUILDING CLEANING AD HOC,COMMEM,Committee and Member Costs,01078,Servicing Committees
http://statistics.data.gov.uk/id/local-authority/16UF,Eden District Council,28/11/2014,139719,1627.82,AMEY PLC,TFE001,Legal Services Manager,Caretaking/security (contract),1003,BUILDING CLEANING AD HOC,COMMEM,Committee and Member Costs,01078,Servicing Committees
http://statistics.data.gov.uk/id/local-authority/16UF,Eden District Council,28/11/2014,139720,3579.36,redacted information,NIC017,Human Resources Manager,Relocation expenses,0054,RELOCATION ALLOWANCE,CENTRA,Central Expenses,00208,Staff Recruitment
http://statistics.data.gov.uk/id/local-authority/16UF,Eden District Council,28/11/2014,139723,600,VENN GROUP LIMITED,VEN003,Revenue/Benefits Manager,Supplies general,2015,16/11/14 TIMESHEET A421906,CTXBEN,Council Tax Benefits,01164,Local Council Tax Scheme
http://statistics.data.gov.uk/id/local-authority/16UF,Eden District Council,28/11/2014,139724,800,VENN GROUP LIMITED,VEN003,Revenue/Benefits Manager,Supplies general,2015,9/11/14  TIMESHEET A420120B,CTXBEN,Council Tax Benefits,01164,Local Council Tax Scheme
http://statistics.data.gov.uk/id/local-authority/16UF,Eden District Council,28/11/2014,139727,5494,ENTERPRISE PROSPECTS LTD,ENT004,Chief Executive's,Agency Staff,0003,ROBIN HOOPER NOVEMBER 2014,CHIEXE,Chief Executive,00050,Chief Executive
http://statistics.data.gov.uk/id/local-authority/16UF,Eden District Council,28/11/2014,139742,1590,CIVICA UK LTD,CIV002,Revenue/Benefits Manager,Supplies general,2015,SET UP/ASSISTANCE/REVENUE PROCESSING,CTXBEN,Council Tax Benefits,01164,Local Council Tax Scheme
http://statistics.data.gov.uk/id/local-authority/16UF,Eden District Council,28/11/2014,139757,800,VENN GROUP LIMITED,VEN003,Revenue/Benefits Manager,Supplies general,2015,23/11/14  TIMESHEET A424003,CTXBEN,Council Tax Benefits,01164,Local Council Tax Scheme
http://statistics.data.gov.uk/id/local-authority/16UF,Eden District Council,28/11/2014,139758,500,PENRITH PARTNERSHIP LIMITED,PEN031,Communities Manager,Community engagement development,2042,GRANT RE WINTER FESTIVAL,COMDEV,Community Development & Engagement,01056,Consultation
http://statistics.data.gov.uk/id/local-authority/16UF,Eden District Council,28/11/2014,139760,8973.5,ARLINGCLOSE LTD,ARL002,Financial Services Manager,Professional fees,2045,TREASURY ADVISORY 01/11/14 - 31/10/14,TREASU,Treasury Management,01096,Treasury Management
http://statistics.data.gov.uk/id/local-authority/16UF,Eden District Council,28/11/2014,139778,12510,CUMBRIA COUNTY COUNCIL,CCC002,Director of Finance,Contribution by EDC,2080,EMERGENCY PLANNING /CS CONTRIBUTION,EMWKPL,Emergency Planning and Works,01088,Emergency Planning
http://statistics.data.gov.uk/id/local-authority/16UF,Eden District Council,28/11/2014,139779,3354,INDEPENDANT ADAPTATIONS LTD,IND002,Environmental Services,Capital grants,5505,INTERIM PAYMENT,MEREGR,1996 Mandatory Renovation Grants,06035,Disabled Facility Grants
http://statistics.data.gov.uk/id/local-authority/16UF,Eden District Council,28/11/2014,139443,11029.07,NORTH COUNTRY LEISURE,NCL001,Communities Manager,NCL Castletown Rec Grounds,1154,VALUATION OCT 7 OF 14/15,LEICEN,Eden Leisure Centre & Appleby Swimming P,02130,Sports Facilities
http://statistics.data.gov.uk/id/local-authority/16UF,Eden District Council,28/11/2014,139486,1040,AINSTABLE CHURCH INSTITUTE,AIN001,Communities Manager,Balance Sheet entry BS,6003,FINAL PAYMENT 20% EDEN COMMUNITY FUND,COMMFND,Community Fund,10400,Community Fund
http://statistics.data.gov.uk/id/local-authority/16UF,Eden District Council,28/11/2014,139488,697.5,RHEGED DISCOVERY CENTRE,RHE001,Communities Manager,Business Engagement,2170,ROOM HIRE/RAMBLERS LUNCH MENU 2,EDEVPR,Economic Development and Promotion,02009,Economic promotion
http://statistics.data.gov.uk/id/local-authority/16UF,Eden District Council,28/11/2014,139506,7500,LOWTHER PARISH HALL COMMITTEE,LOW001,Communities Manager,Balance Sheet entry BS,6003,EDEN COMM FUND 75%,COMMFND,Community Fund,10400,Community Fund
http://statistics.data.gov.uk/id/local-authority/16UF,Eden District Council,28/11/2014,139515,2035.5,NPOWER LTD,NPO001,Engineering Manager,Electricity,1022,TOWN HALL,ADMBLD,Administrative Buildings,00500,Town Hall
http://statistics.data.gov.uk/id/local-authority/16UF,Eden District Council,28/11/2014,139517,530.97,NPOWER LTD,NPO001,Engineering Manager,Electricity,1022,PENRITH CEMETERY CHAPEL,CEMETE,Cemeteries,02236,Penrith Cemetery Chapel
http://statistics.data.gov.uk/id/local-authority/16UF,Eden District Council,28/11/2014,139518,818.38,NPOWER LTD,NPO001,Engineering Manager,Electricity,1022,MANSION HOUSE,ADMBLD,Administrative Buildings,00502,Mansion House
http://statistics.data.gov.uk/id/local-authority/16UF,Eden District Council,28/11/2014,139642,700,CARLETON PARK DEVELOPMENT GROUP,CAR059,Communities Manager,Balance Sheet entry BS,6003,FINAL 20% COMMUNITY FUND GRANT,COMMFND,Community Fund,10400,Community Fund
http://statistics.data.gov.uk/id/local-authority/16UF,Eden District Council,28/11/2014,136920,10660,LGPS,LGP001,Financial Services Manager,Additional Pensions,0030,SUPERANN CONTRIBUTION,CORPOR,Corporate Costs,01179,Additional Employers Superannuation Cont
http://statistics.data.gov.uk/id/local-authority/16UF,Eden District Council,28/11/2014,137227,1242.85,Santander,SAN001,Financial Services Manager,Bank charges,2088,Bank charges October,CORPOR,Corporate Costs,01064,Bank Charges
